bitfinex-derivatives/quotes_ETHF0:USTF0_20250322
["timestamp","ask_amount","ask_price","bid_price","bid_amount"]
[1742604697845,1.01017,1980.6,1980.5,5.51027]
[1742604698340,2.30647,1980.6,1980.5,5.51027]
[1742604699542,2.30647,1980.6,1980.5,3.2078]
[1742604700640,1.01022,1980.5,1980.4,0.00757748]
[1742604700839,2.40022,1980.5,1980.4,1.01785748]
[1742604701043,5.69822,1980.5,1980.4,1.01785748]
[1742604701439,5.69822,1980.5,1980.4,2.30385748]
[1742604704443,5.69822,1980.5,1980.4,1.29357748]
[1742604704641,5.69822,1980.5,1980.4,1.01785748]
[1742604705340,5.69822,1980.5,1980.4,0.00757748]
[1742604710246,4.688,1980.5,1980.4,1.01785748]
[1742604710444,5.69822,1980.5,1980.4,2.98015748]
[1742604710636,5.69322,1980.5,1980.4,2.98015748]
[1742604710839,46.691,1980.8,1980.6,1.01012]
[1742604711042,47.70107,1980.8,1980.7,5.49982]
[1742604711241,50.99607,1980.8,1980.7,5.49982]
[1742604711442,4.30607,1980.8,1980.7,5.49982]
[1742604712048,4.30607,1980.8,1980.7,4.21792]
[1742604712252,4.30607,1980.8,1980.7,5.49982]
[1742604716648,4.30607,1980.8,1980.7,4.21792]
[1742604718946,4.30607,1980.8,1980.7,3.2078]
[1742604719147,4.30607,1980.8,1980.7,4.21792]
[1742604719455,4.30607,1980.8,1980.7,3.2078]
[1742604720644,1.00947,1982.1,1980.9,3.2078]
[1742604720849,3.2078,1982.5,1982.0,2.52366]
[1742604721047,4.17,1982.8,1982.1,3.2078]
[1742604721048,1.00936,1982.2,1982.1,3.2078]
[1742604721248,1.00944,1982.1,1982.0,1.00943]
[1742604721450,3.523,1982.4,1981.9,1.00949]
[1742604721451,1.00946,1982.0,1981.9,1.00949]
[1742604721655,1.00951,1981.9,1981.8,3.887]
[1742604721850,1.00949,1982.0,1981.9,1.00948]
[1742604722060,1.00949,1982.0,1981.8,3.89457748]
[1742604722061,1.01701748,1982.1,1982.0,1.00946]
[1742604722448,1.01701748,1982.1,1982.0,4.21726]
[1742604722743,1.01698748,1982.1,1982.0,4.21726]
[1742604722952,1.01698748,1982.1,1982.0,3.2078]
[1742604723946,1.00951,1981.9,1981.8,3.21537748]
[1742604724355,4.52651,1981.9,1981.8,3.21537748]
[1742604725055,4.52651,1981.9,1981.8,0.00757748]
[1742604725744,1.00951,1981.9,1981.8,3.21537748]
[1742604725947,4.52151,1981.9,1981.8,3.21537748]
[1742604726147,4.52151,1981.9,1981.8,4.50337748]
[1742604727249,4.52151,1981.9,1981.8,5.51293748]
[1742604727450,4.52151,1981.9,1981.8,4.50337748]
[1742604727645,1.00951,1981.9,1981.8,4.50337748]
[1742604728053,2.38151,1981.9,1981.8,4.50337748]
[1742604729458,2.38151,1981.9,1981.8,5.51293748]
[1742604729659,2.38151,1981.9,1981.8,4.50337748]
[1742604730347,2.38151,1981.9,1981.8,5.51293748]
[1742604730547,2.38151,1981.9,1981.8,4.50337748]
[1742604731751,5.05480748,1982.1,1981.8,4.50337748]
[1742604731752,1.01698748,1982.1,1982.0,1.00946]
[1742604732054,1.01698748,1982.1,1982.0,4.21726]
[1742604732457,1.01698748,1982.1,1982.0,4.6129]
[1742604733148,2.29928748,1982.1,1982.0,4.6129]
[1742604734459,1.00951,1981.9,1981.8,3.21537748]
[1742604734848,4.50651,1981.9,1981.8,0.00757748]
[1742604735153,1.00977,1981.4,1981.3,3.2078]
[1742604735759,2.30597,1981.4,1981.3,3.2078]
[1742604740362,1.00982,1981.3,1981.2,1.36107748]
[1742604740562,5.89122,1981.3,1981.2,0.00757748]
[1742604743170,5.89122,1981.3,1981.2,1.33017748]
[1742604743360,1.00982,1981.3,1981.2,2.34004748]
[1742604743563,4.48982,1981.3,1981.2,2.34004748]
[1742604744658,1.00982,1981.3,1981.2,2.34004748]
[1742604745466,3.482,1981.4,1981.2,1.33017748]
[1742604745767,0.00757748,1982.1,1981.8,1.00956]
[1742604745967,1.00948,1982.0,1981.9,4.5443]
[1742604746363,2.28628,1982.0,1981.9,4.5443]
[1742604746963,1.00956,1981.8,1981.7,3.8694]
[1742604747163,1.00956,1981.8,1981.7,5.2059]
[1742604748065,1.00956,1981.8,1981.7,6.21551]
[1742604748262,1.00954,1981.9,1981.8,1.00952]
[1742604749068,1.00956,1981.8,1981.7,6.21551]
[1742604749284,1.00956,1981.8,1981.7,5.2059]
[1742604749872,1.00956,1981.8,1981.7,3.2078]
[1742604750676,1.00956,1981.8,1981.7,4.5637]
[1742604751262,1.00956,1981.8,1981.7,3.2078]
[1742604751464,1.00966,1981.6,1981.5,1.3559]
[1742604752074,1.00971,1981.5,1981.4,3.2078]
[1742604752371,1.00971,1981.5,1981.4,4.5637]
[1742604754373,4.49671,1981.5,1981.4,4.5637]
[1742604754764,1.00971,1981.5,1981.4,4.5637]
[1742604754971,4.49471,1981.5,1981.4,4.5637]
[1742604758479,4.49471,1981.5,1981.4,1.3559]
[1742604758778,4.49471,1981.5,1981.4,4.5637]
[1742604761675,4.49471,1981.5,1981.4,3.2078]
[1742604763285,4.49471,1981.5,1981.4,4.21757]
[1742604763581,4.49471,1981.5,1981.4,4.598]
[1742604767180,4.49471,1981.5,1981.4,3.2078]
[1742604768185,1.00977,1981.4,1981.3,2.0885]
[1742604768387,2.40447,1981.4,1981.3,2.0885]
[1742604772987,0.08786581,1982.7,1981.3,13.9025]
[1742604773194,1.3374,1982.5,1981.8,3.2078]
[1742604773489,1.3374,1982.5,1982.4,4.21706]
[1742604773788,0.691,1982.6,1982.5,1.00921]
[1742604773992,3.504,1982.7,1982.4,7.79714]
[1742604774189,0.33212487,1983.7,1982.8,50.45289]
[1742604774393,83.17613867,1984.7,1982.8,50.45289]
[1742604774394,0.38693542,1984.7,1983.6,3.2078]
[1742604774589,3.2078,1984.4,1984.0,3.2078]
[1742604774888,1.00839,1984.1,1984.0,0.00757748]
[1742604775289,5.15297748,1984.3,1984.0,0.00757748]
[1742604775492,1.00839,1984.1,1984.0,0.00757748]
[1742604775995,1.00838,1984.2,1984.0,3.21537748]
[1742604776180,5.15297748,1984.3,1984.0,0.00757748]
[1742604776181,2.37479,1984.1,1984.0,0.00757748]
[1742604776890,1.00849,1983.9,1983.8,3.2078]
[1742604777088,4.77849,1983.9,1983.8,3.2078]
[1742604777486,6.14489,1983.9,1983.8,3.2078]
[1742604777998,1.00854,1983.8,1983.7,0.00757748]
[1742604778189,2.41754,1983.8,1983.7,0.00757748]
[1742604778591,6.18754,1983.8,1983.7,0.00757748]
[1742604780505,6.18754,1983.8,1983.7,1.01617748]
[1742604780808,6.18754,1983.8,1983.7,2.32777748]
[1742604781611,6.18754,1983.8,1983.7,1.31917748]
[1742604782301,6.18754,1983.8,1983.7,0.00757748]
[1742604782500,6.18754,1983.8,1983.7,1.01617748]
[1742604782912,6.18754,1983.8,1983.7,0.00757748]
[1742604783798,3.2078,1984.2,1983.7,0.00757748]
[1742604784006,0.00757748,1984.3,1984.0,1.00842]
[1742604784206,1.00834,1984.2,1984.1,4.4811]
[1742604784504,2.36104,1984.2,1984.1,4.4811]
[1742604784707,2.52101,1984.1,1983.9,3.2078]
[1742604784908,2.36114,1984.0,1983.9,5.48959]
[1742604785107,6.11914,1984.0,1983.9,5.48959]
[1742604785305,5.1107,1984.0,1983.9,5.48959]
[1742604786310,3.758,1984.0,1983.9,5.48959]
[1742604786800,4.76644,1984.0,1983.9,5.48959]
[1742604787813,4.76644,1984.0,1983.9,4.4811]
[1742604788008,4.76644,1984.0,1983.9,5.48959]
[1742604788810,4.76644,1984.0,1983.9,3.2078]
[1742604790121,1.00854,1983.8,1983.7,0.00757748]
[1742604791115,1.00854,1983.8,1983.2,7.37432]
[1742604791116,1.00875,1983.4,1983.3,1.00879]
[1742604791319,4.73875,1983.4,1983.3,5.53459]
[1742604792108,4.73875,1983.4,1983.3,4.5258]
[1742604792710,4.73875,1983.4,1983.3,5.5346]
[1742604793422,4.73875,1983.4,1983.3,4.5258]
[1742604793616,4.73875,1983.4,1983.3,3.2078]
[1742604794023,1.0088,1983.3,1983.2,0.00757748]
[1742604794215,3.0981,1983.3,1983.2,0.00757748]
[1742604794724,50.44399,1983.2,1981.9,2.52373]
[1742604794915,1.00918,1982.6,1982.5,1.00917]
[1742604795119,3.789,1982.6,1982.5,3.2078]
[1742604795322,4.79815,1982.6,1982.5,4.21701]
[1742604795820,1.00921,1982.5,1982.4,1.33097748]
[1742604796821,1.00921,1982.5,1982.4,2.34023748]
[1742604797721,5.1683,1982.6,1982.4,1.33097748]
[1742604797925,6.17748,1982.6,1982.5,3.2078]
[1742604798129,6.17748,1982.6,1982.5,4.21701]
[1742604798327,6.17748,1982.6,1982.5,5.56901]
[1742604799321,1.01670748,1982.7,1982.6,1.00915]
[1742604799823,1.00915,1982.6,1982.5,6.26856]
[1742604800125,1.00915,1982.6,1982.5,5.2594]
[1742604800326,2.30555,1982.6,1982.5,3.06081]
[1742604800526,2.30555,1982.6,1982.5,2.0516]
[1742604801230,2.30555,1982.6,1982.5,3.06081]
[1742604801918,2.30555,1982.6,1982.5,2.0516]
[1742604802119,2.30555,1982.6,1982.5,3.06081]
[1742604805733,1.00921,1982.5,1982.4,0.00757748]
[1742604806029,6.02771,1982.5,1982.4,0.00757748]
[1742604806230,6.02771,1982.5,1982.4,3.21537748]
[1742604806428,6.02771,1982.5,1982.4,0.00757748]
[1742604807329,1.00936,1982.2,1982.1,1.00937]
[1742604807534,1.00936,1982.2,1982.0,1.00942]
[1742604807535,1.00943,1982.1,1982.0,1.00942]
[1742604807827,1.00941,1982.1,1982.0,1.00942]
[1742604808434,4.7494,1982.2,1982.1,1.00941]
[1742604810938,6.1443,1982.2,1982.1,1.00941]
[1742604812929,6.14426,1982.2,1982.1,1.00941]
[1742604813237,0.7021,1982.3,1982.2,1.00936]
[1742604813435,5.6894,1982.3,1982.2,2.30196]
[1742604813839,1.9764,1982.3,1982.2,2.30196]
[1742604814039,5.6894,1982.3,1982.2,2.30196]
[1742604814734,6.69871,1982.3,1982.2,2.30196]
[1742604814928,5.6894,1982.3,1982.2,2.30196]
[1742604815132,5.6834,1982.3,1982.2,2.30196]
[1742604817941,1.00918,1982.6,1982.5,1.00915]
[1742604818244,4.70518,1982.6,1982.5,1.00915]
[1742604818734,4.70518,1982.6,1982.5,4.21695]
[1742604818933,3.696,1982.6,1982.5,4.21695]
[1742604819134,4.70515,1982.6,1982.5,4.21695]
[1742604819339,6.03315,1982.6,1982.5,4.21695]
[1742604819536,5.024,1982.6,1982.5,4.21695]
[1742604819736,6.03315,1982.6,1982.5,4.21695]
[1742604819932,5.024,1982.6,1982.5,4.21695]
[1742604820135,6.03315,1982.6,1982.5,4.21695]
[1742604820629,5.016,1982.6,1982.5,4.21695]
[1742604824045,6.02515,1982.6,1982.5,4.21695]
[1742604825337,6.02515,1982.6,1982.5,1.00915]
[1742604826439,1.00921,1982.5,1982.4,1.00922]
[1742604826644,2.40611,1982.5,1982.4,1.00922]
[1742604827943,1.00926,1982.4,1982.3,10.08906]
[1742604828140,2.40616,1982.4,1982.3,6.88126]
[1742604828541,2.40616,1982.4,1982.3,5.872]
[1742604829041,2.40616,1982.4,1982.3,6.88131]
[1742604831153,2.40616,1982.4,1982.3,1.00931]
[1742604832257,1.3969,1982.4,1982.3,4.21711]
[1742604832757,1.3969,1982.4,1982.3,5.58211]
[1742604834357,1.3969,1982.4,1982.3,2.37431]
[1742604834557,1.3969,1982.4,1982.3,5.58211]
[1742604834752,2.40616,1982.4,1982.3,5.58211]
[1742604835254,1.3969,1982.4,1982.3,5.58211]
[1742604835454,2.40616,1982.4,1982.3,5.58211]
[1742604835860,2.40616,1982.4,1982.3,2.37431]
[1742604836358,1.3969,1982.4,1982.3,2.37431]
[1742604836563,2.40616,1982.4,1982.3,2.37431]
[1742604837061,2.40616,1982.4,1982.3,1.00931]
[1742604837760,2.40616,1982.4,1982.3,2.35871]
[1742604839159,1.3969,1982.4,1982.3,2.35871]
[1742604839351,1.3969,1982.4,1982.3,2.92554742]
[1742604839555,1.3969,1982.4,1982.3,3.61294099]
[1742604841063,1.3969,1982.4,1982.3,3.61303381]
[1742604842665,1.3969,1982.4,1982.3,3.61313682]
[1742604843058,2.40616,1982.4,1982.3,3.61313682]
[1742604843258,1.3969,1982.4,1982.3,3.61313682]
[1742604843456,2.40616,1982.4,1982.3,2.92573682]
[1742604843859,1.3969,1982.4,1982.3,2.92573682]
[1742604844265,1.3969,1982.4,1982.3,2.35871]
[1742604844464,2.40616,1982.4,1982.3,2.35871]
[1742604844666,1.00931,1982.3,1982.2,5.872]
[1742604844967,1.00931,1982.3,1982.0,2.40105]
[1742604844968,1.00941,1982.1,1982.0,2.40105]
[1742604845272,1.00941,1982.1,1982.0,1.00945]
[1742604845463,1.00946,1982.0,1981.9,2.40865748]
[1742604846670,4.61346,1982.0,1981.9,0.00757748]
[1742604847860,1.00956,1981.8,1981.7,5.872]
[1742604848462,1.00961,1981.7,1981.6,2.40122]
[1742604848662,1.00961,1981.7,1981.5,3.2078]
[1742604848663,1.00966,1981.6,1981.5,3.2078]
[1742604848865,1.00977,1981.4,1981.3,10.08958]
[1742604849063,1.3713,1981.5,1981.4,1.01482166]
[1742604849264,1.37887748,1981.5,1981.4,1.01482166]
[1742604849457,2.38858748,1981.5,1981.4,0.00505166]
[1742604850063,2.38858748,1981.5,1981.4,1.01482166]
[1742604850264,2.38858748,1981.5,1981.4,0.00505166]
[1742604850564,2.38858748,1981.5,1981.4,1.01482166]
[1742604851259,0.00757748,1981.5,1981.4,2.41802166]
[1742604853572,1.00958,1981.8,1981.7,1.00956]
[1742604854074,1.00958,1981.8,1981.7,3.12126]
[1742604854274,1.00958,1981.8,1981.7,2.1117]
[1742604854469,2.41708,1981.8,1981.7,1.4116]
[1742604854974,1.00961,1981.7,1981.6,3.2078]
[1742604855163,2.41711,1981.7,1981.6,3.2078]
[1742604855867,2.41711,1981.7,1981.6,4.21746]
[1742604856067,2.41711,1981.7,1981.6,5.62906]
[1742604857274,2.41711,1981.7,1981.6,4.6194]
[1742604857463,2.41711,1981.7,1981.6,5.62906]
[1742604859581,2.41711,1981.7,1981.6,4.6194]
[1742604859877,2.41711,1981.7,1981.6,3.2078]
[1742604861182,1.00971,1981.5,1981.4,0.00505166]
[1742604861479,4.58471,1981.5,1981.4,0.00505166]
[1742604861871,5.22951,1981.5,1981.4,0.00505166]
[1742604864182,5.22951,1981.5,1981.4,1.01482166]
[1742604864382,5.22951,1981.5,1981.4,1.36805166]
[1742604865285,5.22951,1981.5,1981.4,2.37782166]
[1742604865488,5.22951,1981.5,1981.4,1.36805166]
[1742604866481,5.22951,1981.5,1981.4,2.37782166]
[1742604867576,5.22951,1981.5,1981.4,1.36805166]
[1742604867776,5.22951,1981.5,1981.4,2.37782166]
[1742604870088,5.22951,1981.5,1981.4,1.36805166]
[1742604870289,5.22951,1981.5,1981.4,2.37782166]
[1742604870480,5.22951,1981.5,1981.4,0.00505166]
[1742604870980,5.88091,1981.5,1981.4,1.01482166]
[1742604871181,5.88091,1981.5,1981.4,2.34752166]
[1742604872989,0.6448,1981.5,1981.4,2.34752166]
[1742604873189,4.1828,1981.5,1981.4,2.34752166]
[1742604873390,0.6448,1981.5,1981.4,2.34752166]
[1742604873984,1.65451,1981.5,1981.4,2.34752166]
[1742604874286,2.98761,1981.5,1981.4,2.91542282]
[1742604874588,2.98761,1981.5,1981.4,0.00505166]
[1742604874888,3.65971,1981.5,1981.4,1.01482166]
[1742604875083,3.65971,1981.5,1981.4,1.36255166]
[1742604875592,3.65971,1981.5,1981.4,2.37232166]
[1742604876389,3.65971,1981.5,1981.4,0.00505166]
[1742604881286,3.65971,1981.5,1981.4,3.21285166]
[1742604881487,3.65971,1981.5,1981.4,4.22262166]
[1742604882289,3.65971,1981.5,1981.4,3.21285166]
[1742604882493,3.65971,1981.5,1981.4,4.22262166]
[1742604882694,7.16971,1981.5,1981.4,4.22262166]
[1742604882896,2.65,1981.5,1981.4,4.22262166]
[1742604883096,5.4879,1981.5,1981.4,4.22262166]
[1742604883693,6.49761,1981.5,1981.4,4.22262166]
[1742604885191,6.49761,1981.5,1981.4,3.21285166]
[1742604885389,6.49761,1981.5,1981.4,4.22262166]
[1742604885788,6.49761,1981.5,1981.4,3.21285166]
[1742604885989,6.49761,1981.5,1981.4,4.22262166]
[1742604886189,6.49761,1981.5,1981.4,3.21285166]
[1742604886494,6.49761,1981.5,1981.4,4.22262166]
[1742604887693,6.49761,1981.5,1981.4,3.21285166]
[1742604888090,6.49761,1981.5,1981.4,0.00505166]
[1742604894590,6.46561,1981.5,1981.4,1.01482166]
[1742604894992,6.46561,1981.5,1981.4,2.29242166]
[1742604895203,6.46561,1981.5,1981.4,1.28265166]
[1742604897007,6.46561,1981.5,1981.4,2.29242166]
[1742604897806,6.46561,1981.5,1981.4,1.28265166]
[1742604898003,6.46561,1981.5,1981.4,0.00505166]
[1742604900402,6.46561,1981.5,1981.4,1.28075166]
[1742604903912,6.46561,1981.5,1981.4,0.00505166]
[1742604909312,6.42661,1981.5,1981.4,0.00505166]
[1742604909712,6.42661,1981.5,1981.4,1.35205166]
[1742604910014,5.4159,1981.5,1981.4,2.36182166]
[1742604910209,2.98761,1981.5,1981.4,2.36182166]
[1742604910413,5.77981,1981.5,1981.4,2.36182166]
[1742604916917,4.7701,1981.5,1981.4,2.36182166]
[1742604917919,5.77981,1981.5,1981.4,2.36182166]
[1742604920818,4.7701,1981.5,1981.4,2.36182166]
[1742604921719,5.77981,1981.5,1981.4,2.36182166]
[1742604923121,4.7701,1981.5,1981.4,2.36182166]
[1742604924012,46.68057748,1981.9,1981.8,1.00956]
[1742604924218,51.75318748,1981.9,1981.8,1.00956]
[1742604924426,5.08018748,1981.9,1981.8,1.00956]
[1742604924720,4.07067748,1981.9,1981.8,1.00956]
[1742604925127,5.08018748,1981.9,1981.8,1.00956]
[1742604925327,6.47788748,1981.9,1981.8,1.00956]
[1742604925927,1.00961,1981.8,1981.7,1.00957]
[1742604926227,2.40731,1981.8,1981.7,1.00957]
[1742604926725,4.8047,1981.8,1981.7,2.31877]
[1742604926926,4.8047,1981.8,1981.7,5.52657]
[1742604931130,0.00757748,1981.9,1981.8,1.00956]
[1742604931325,0.00757748,1981.9,1981.8,2.38606]
[1742604932428,1.29927748,1981.9,1981.8,2.38606]
[1742604933931,0.00757748,1981.9,1981.8,2.38606]
[1742604934636,1.41607748,1981.9,1981.8,2.38606]
[1742604935933,0.00757748,1981.9,1981.8,2.38606]
[1742604936335,0.00757748,1981.9,1981.8,2.95427892]
[1742604936632,0.00757748,1981.9,1981.8,2.95428403]
[1742604937341,0.00757748,1981.9,1981.8,2.38606]
[1742604938245,0.00757748,1981.9,1981.8,2.95423257]
[1742604938437,0.00757748,1981.9,1981.8,2.38606]
[1742604939445,0.00757748,1981.9,1981.8,2.95417595]
[1742604940339,0.00757748,1981.9,1981.8,2.95422518]
[1742604942245,0.00757748,1981.9,1981.8,2.38606]
[1742604942445,0.00757748,1981.9,1981.8,2.95416779]
[1742604945954,0.6694,1982.3,1982.2,1.00936]
[1742604946153,1.3157,1982.5,1982.4,1.00926]
[1742604946346,1.3157,1982.5,1982.4,4.21706]
[1742604946746,1.3157,1982.5,1982.4,5.60776]
[1742604949053,1.3157,1982.5,1982.4,4.21706]
[1742604949253,1.9599,1982.5,1982.4,4.21706]
[1742604954962,2.96911,1982.5,1982.4,4.21706]
[1742604955263,2.96911,1982.5,1982.4,1.00926]
[1742604956955,6.33211,1982.5,1982.4,1.00926]
[1742604959256,6.33211,1982.5,1982.2,7.0853]
[1742604959463,6.33211,1982.5,1982.3,1.00926]
[1742604959464,2.40221,1982.4,1982.3,1.00926]
[1742604959656,1.00931,1982.3,1982.2,4.21712]
[1742604959857,3.04971,1982.3,1982.2,4.21712]
[1742604960059,6.40671,1982.3,1982.2,4.21712]
[1742604960263,1.00936,1982.2,1982.1,6.88137]
[1742604960450,2.40226,1982.2,1982.1,6.88137]
[1742604962962,2.40226,1982.2,1982.1,1.00937]
[1742604963465,2.40226,1982.2,1982.1,2.29187]
[1742604966059,1.3929,1982.2,1982.1,2.29187]
[1742604966368,2.40226,1982.2,1982.1,2.29187]
[1742604968161,2.40226,1982.2,1982.1,5.49967]
[1742604969263,0.00757748,1982.6,1982.5,1.00921]
[1742604969459,0.00757748,1982.6,1982.5,4.21701]
[1742604969666,1.36367748,1982.6,1982.5,4.21701]
[1742604970058,0.00757748,1982.6,1982.5,8.07311]
[1742604970264,0.00757748,1982.6,1982.5,5.57311]
[1742604971672,0.00757748,1982.6,1982.5,8.64140629]
[1742604971868,0.00757748,1982.6,1982.5,9.55049919]
[1742604972366,0.00757748,1982.6,1982.5,7.05049919]
[1742604972563,0.00757748,1982.6,1982.5,6.14133661]
[1742604973270,0.00757748,1982.6,1982.5,6.51922597]
[1742604973469,0.00757748,1982.6,1982.5,6.14133661]
[1742604973670,0.00757748,1982.6,1982.5,7.05031753]
[1742604973871,0.00757748,1982.6,1982.5,9.55031753]
[1742604974068,0.00757748,1982.6,1982.5,7.05031753]
[1742604974676,0.00757748,1982.6,1982.5,12.92231753]
[1742604974867,0.00757748,1982.6,1982.5,15.42231753]
[1742604975178,0.00757748,1982.6,1982.5,16.09890108]
[1742604975568,0.00757748,1982.6,1982.5,16.09841352]
[1742604975764,0.7034,1983.1,1982.5,19.45860997]
[1742604975975,0.7034,1983.1,1982.9,1.009]
[1742604975976,1.3991,1983.0,1982.9,1.009]
[1742604976274,1.3991,1983.0,1982.9,4.2168]
[1742604979077,1.3991,1983.0,1982.9,4.8861]
[1742604979772,2.40805,1983.0,1982.9,4.8861]
[1742604980467,2.40805,1983.0,1982.9,4.2168]
[1742604981477,1.3991,1983.0,1982.9,4.2168]
[1742604981678,2.40805,1983.0,1982.9,4.2168]
[1742604983083,2.40805,1983.0,1982.9,1.009]
[1742604983278,2.40805,1983.0,1982.9,4.2168]
[1742604985080,2.40805,1983.0,1982.9,3.2078]
[1742604985275,1.009,1982.9,1982.8,1.01661748]
[1742604985474,1.009,1982.9,1982.8,0.00757748]
[1742604985475,6.3796,1982.9,1982.8,0.00757748]
[1742604985678,6.3796,1982.9,1982.8,1.01662748]
[1742604985875,6.3796,1982.9,1982.8,0.00757748]
[1742604986181,6.3796,1982.9,1982.8,1.01662748]
[1742604986583,6.3796,1982.9,1982.8,2.40082748]
[1742604991077,6.3796,1982.9,1982.8,5.60862748]
[1742604992579,6.3796,1982.9,1982.8,4.22442748]
[1742604993686,6.3796,1982.9,1982.8,1.01662748]
[1742604998688,6.3796,1982.9,1982.8,0.00757748]
[1742605002801,1.00915,1982.6,1982.5,3.2078]
[1742605003495,1.00921,1982.5,1982.4,1.00926]
[1742605003793,1.00921,1982.5,1982.3,4.5372]
[1742605003794,1.00926,1982.4,1982.3,5.54646]
[1742605003993,2.37736,1982.4,1982.3,5.55403748]
[1742605004498,2.37736,1982.4,1982.3,4.22463748]
[1742605012499,2.37736,1982.4,1982.3,5.52133748]
[1742605013694,2.37736,1982.4,1982.3,4.51207748]
[1742605014100,2.37736,1982.4,1982.3,3.21537748]
[1742605015898,1.00936,1982.2,1982.1,11.0725]
[1742605016102,1.00936,1982.2,1982.1,5.2005]
[1742605016305,2.35016,1982.2,1982.1,5.2005]
[1742605016804,2.35016,1982.2,1982.1,3.2078]
[1742605016999,2.35016,1982.2,1982.1,4.21721]
[1742605019402,1.3408,1982.2,1982.1,4.21721]
[1742605019700,5.05220748,1983.1,1982.4,1.00926]
[1742605019701,1.00922,1982.5,1982.4,1.00926]
[1742605019902,5.60892,1982.5,1982.4,4.86576]
[1742605020104,5.60892,1982.5,1982.4,6.27916]
[1742605020304,4.5997,1982.5,1982.4,6.27916]
[1742605020809,1.2767,1982.5,1982.4,6.27916]
[1742605021400,5.0317,1982.6,1982.5,1.00921]
[1742605021601,6.3084,1982.6,1982.5,2.42261]
[1742605025707,5.2992,1982.6,1982.5,2.42261]
[1742605026113,6.30835,1982.6,1982.5,2.42261]
[1742605027015,5.2992,1982.6,1982.5,2.42261]
[1742605027214,4.5987,1982.6,1982.5,2.42261]
[1742605027412,5.60785,1982.6,1982.5,2.42261]
[1742605027916,2.28585,1982.6,1982.5,2.42261]
[1742605028417,1.2767,1982.6,1982.5,2.42261]
[1742605028720,2.28585,1982.6,1982.5,2.42261]
[1742605029913,2.28585,1982.6,1982.5,1.4134]
[1742605030114,1.00921,1982.5,1982.4,3.2078]
[1742605030322,6.29811,1982.5,1982.4,3.2078]
[1742605030519,1.00926,1982.4,1982.3,1.00929]
[1742605030712,1.00931,1982.3,1982.2,5.60552]
[1742605030912,1.00931,1982.3,1982.2,4.21712]
[1742605031215,2.41071,1982.3,1982.2,4.21712]
[1742605032416,1.4014,1982.3,1982.2,4.21712]
[1742605032722,0.6959,1982.4,1982.3,1.00931]
[1742605032922,3.10656,1982.4,1982.3,1.00931]
[1742605033322,2.0973,1982.4,1982.3,1.00931]
[1742605033919,0.6684,1982.7,1982.5,1.00915]
[1742605034126,5.71885,1982.6,1982.5,1.00915]
[1742605034326,5.71885,1982.6,1982.5,4.21695]
[1742605035226,2.40785,1982.6,1982.5,4.21695]
[1742605037131,1.3987,1982.6,1982.5,4.21695]
[1742605037626,1.3987,1982.6,1982.5,4.78495928]
[1742605037930,2.52252,1982.9,1982.7,1.00905]
[1742605037931,4.3151,1982.8,1982.7,1.00905]
[1742605038116,5.7075,1982.8,1982.7,4.21685]
[1742605041126,4.6984,1982.8,1982.7,4.21685]
[1742605041922,5.70745,1982.8,1982.7,4.21685]
[1742605042428,0.6595,1983.0,1982.9,1.009]
[1742605042730,1.9594,1983.0,1982.9,4.2168]
[1742605042931,1.01647748,1983.1,1983.0,1.00895]
[1742605043225,1.32047748,1983.1,1983.0,1.00895]
[1742605043431,2.32937748,1983.1,1983.0,1.00895]
[1742605043630,1.32047748,1983.1,1983.0,1.00895]
[1742605044324,1.32047748,1983.1,1983.0,1.67425]
[1742605045931,1.32047748,1983.1,1983.0,4.88205]
[1742605046631,2.32937748,1983.1,1983.0,4.88205]
[1742605046832,1.32047748,1983.1,1983.0,4.88205]
[1742605047829,2.32937748,1983.1,1983.0,4.88205]
[1742605048023,2.32937748,1983.1,1983.0,4.21675]
[1742605054433,1.009,1982.9,1982.8,4.88081]
[1742605054732,10.66530965,1983.9,1983.6,1.00865]
[1742605054931,47.6536,1983.7,1983.6,1.00865]
[1742605055130,4.3086,1983.7,1983.6,1.00865]
[1742605055728,1.00865,1983.6,1983.5,1.70507]
[1742605055933,1.69065,1983.6,1983.5,1.71264748]
[1742605056140,1.9951,1983.6,1983.5,3.08024748]
[1742605056341,3.00375,1983.6,1983.5,3.08024748]
[1742605056537,1.9951,1983.6,1983.5,3.08024748]
[1742605056742,5.2941,1983.6,1983.5,3.08024748]
[1742605057039,1.67705748,1983.8,1983.5,4.59332748]
[1742605057235,1.3131,1983.7,1983.6,1.3676]
[1742605057432,1.3131,1983.7,1983.6,4.5754]
[1742605058341,2.3217,1983.7,1983.6,5.58405]
[1742605060136,1.3131,1983.7,1983.6,5.58405]
[1742605060339,2.3217,1983.7,1983.6,5.58405]
[1742605060539,1.3131,1983.7,1983.6,5.58405]
[1742605060846,2.3217,1983.7,1983.6,5.58405]
[1742605061737,2.3217,1983.7,1983.6,4.21645]
[1742605061933,2.3217,1983.7,1983.6,1.00865]
[1742605062133,1.00865,1983.6,1983.5,0.00757748]
[1742605062444,5.62925,1983.6,1983.5,0.00757748]
[1742605064446,5.62925,1983.6,1983.5,1.01627748]
[1742605066045,5.62925,1983.6,1983.5,0.00757748]
[1742605066252,1.0088,1983.3,1983.2,4.21664]
[1742605066444,4.2978,1983.3,1983.2,3.2078]
[1742605068453,1.00885,1983.2,1983.1,1.01647748]
[1742605068647,3.05475,1983.2,1983.1,0.00757748]
[1742605068853,3.05475,1983.2,1983.1,1.01647748]
[1742605069448,3.73205,1983.2,1983.1,0.00757748]
[1742605070550,1.009,1982.9,1982.8,6.20803]
[1742605070854,4.298,1982.9,1982.8,6.20803]
[1742605071253,4.298,1982.9,1982.8,5.199]
[1742605071451,4.9525,1982.9,1982.8,6.20805]
[1742605073350,4.9525,1982.9,1982.8,5.199]
[1742605073553,4.9525,1982.9,1982.8,6.20805]